bitfinex/quotes_BTCUSD_20250522
["timestamp","ask_amount","ask_price","bid_price","bid_amount"]
[1747900833027,0.25523582,111090.0,111080.0,1.18071378]
[1747900833268,0.25523582,111090.0,111080.0,0.85871856]
[1747900833681,0.19103558,111090.0,111080.0,0.48492932]
[1747900833926,0.20903818,111090.0,111080.0,1.12004924]
[1747900834141,0.02900366,111090.0,111080.0,0.84293338]
[1747900834373,0.0200022,111090.0,111080.0,2.15503138]
[1747900834598,0.02900366,111090.0,111080.0,2.41636214]
[1747900835018,0.02900366,111090.0,111080.0,2.2593813]
[1747900835222,0.02900366,111090.0,111080.0,1.99805054]
[1747900835684,0.002,111090.0,111080.0,2.33188382]
[1747900836407,0.21803956,111090.0,111080.0,1.27131235]
[1747900836635,0.20903794,111090.0,111080.0,1.54164506]
[1747900836872,0.21803956,111090.0,111080.0,1.55618591]
[1747900837587,0.03800528,111090.0,111080.0,1.55618591]
[1747900838545,0.21803948,111090.0,111080.0,1.54714396]
[1747900838768,0.26123712,111090.0,111080.0,0.92363161]
[1747900839229,0.25223574,111090.0,111080.0,1.26363161]
[1747900839453,0.25223574,111090.0,111080.0,1.27263404]
[1747900839699,0.25223574,111090.0,111080.0,0.34]
[1747900839936,0.22056978,111070.0,111060.0,0.66883019]
[1747900840172,0.22056978,111070.0,111060.0,1.49667302]
[1747900840173,0.25957286,111070.0,111060.0,1.49667302]
[1747900840410,0.19807286,111070.0,111060.0,1.5146808]
[1747900840643,0.21155041,111080.0,111060.0,1.5146808]
[1747900840644,0.05850601,111080.0,111070.0,0.53807295]
[1747900840867,0.00900276,111070.0,111060.0,1.27689374]
[1747900841110,0.22955471,111080.0,111070.0,0.52906987]
[1747900841336,0.22955511,111080.0,111070.0,0.79040071]
[1747900841590,0.22955511,111080.0,111070.0,0.79940396]
[1747900842312,0.22955511,111080.0,111070.0,0.5380732]
[1747900842540,0.22955511,111080.0,111070.0,0.79940396]
[1747900843002,0.22955511,111080.0,111070.0,0.80240396]
[1747900843721,0.22955511,111080.0,111070.0,0.80440396]
[1747900843950,0.22955511,111080.0,111070.0,1.07432396]
[1747900844183,0.00900219,111080.0,111070.0,1.07986131]
[1747900844420,0.03600892,111080.0,111070.0,1.10687048]
[1747900844650,0.21605933,111080.0,111070.0,1.10687048]
[1747900844915,0.23815738,111080.0,111070.0,1.08886472]
[1747900845138,0.19103591,111090.0,111080.0,0.18905276]
[1747900845363,0.20003737,111090.0,111080.0,0.79038352]
[1747900845593,0.22213591,111090.0,111080.0,0.79038369]
[1747900845830,0.22213591,111090.0,111080.0,0.79938612]
[1747900846330,0.22213591,111090.0,111080.0,0.80838847]
[1747900847674,0.2440342,111090.0,111080.0,0.79038369]
[1747900848138,0.2440342,111090.0,111080.0,0.79938604]
[1747900848588,0.2440342,111090.0,111080.0,0.79038369]
[1747900849054,0.2440342,111090.0,111080.0,0.34]
[1747900849284,0.2440342,111090.0,111080.0,0.60133076]
[1747900849529,0.2440342,111090.0,111080.0,1.24913076]
[1747900850483,0.2440342,111090.0,111080.0,0.98784]
[1747900850941,0.2440342,111090.0,111080.0,0.34]
[1747900852493,0.2450342,111090.0,111080.0,0.34]
[1747900852960,0.1980727,111070.0,111060.0,0.40749943]
[1747900853187,0.2629727,111070.0,111060.0,0.41820933]
[1747900853417,0.2629727,111070.0,111060.0,0.14824933]
[1747900853638,0.18009905,111050.0,111040.0,0.26333076]
[1747900853897,0.22090384,111050.0,111040.0,0.91121076]
[1747900854571,0.22090384,111050.0,111040.0,0.92021652]
[1747900854796,0.22090384,111050.0,111040.0,1.10933747]
[1747900855020,0.22090384,111050.0,111040.0,0.91121076]
[1747900855692,0.22090384,111050.0,111040.0,0.93393151]
[1747900855923,0.22090384,111050.0,111040.0,1.27393151]
[1747900856151,0.22090384,111050.0,111040.0,1.26993151]
[1747900856631,0.22090384,111050.0,111040.0,1.26997151]
[1747900856866,0.25250384,111050.0,111040.0,0.36072075]
[1747900857104,0.25250384,111050.0,111040.0,0.89201151]
[1747900857343,0.25250384,111050.0,111040.0,0.62205151]
[1747900857344,0.22090384,111050.0,111040.0,0.62205151]
[1747900857579,0.18908664,111060.0,111050.0,0.529104]
[1747900857820,0.19809061,111060.0,111050.0,0.80844433]
[1747900858035,0.19809061,111060.0,111050.0,0.79943963]
[1747900858269,9.141e-05,111070.0,111060.0,0.01800803]
[1747900858528,0.2251728,111070.0,111060.0,1.08963996]
[1747900858778,0.19816444,111070.0,111060.0,0.87129076]
[1747900859108,0.26116444,111070.0,111060.0,0.87129076]
[1747900859288,0.22946444,111070.0,111060.0,0.87129076]
[1747900859530,0.19816444,111070.0,111060.0,0.87129076]
[1747900860204,0.20016444,111070.0,111060.0,0.87129076]
[1747900860704,0.20316444,111070.0,111060.0,0.87129076]
[1747900861369,0.00509141,111070.0,111060.0,1.88827588]
[1747900861585,0.00509141,111070.0,111060.0,1.67769312]
[1747900861785,0.02309677,111070.0,111060.0,1.70901804]
[1747900862108,0.03209977,111070.0,111060.0,1.65802161]
[1747900862313,0.04110285,111070.0,111060.0,1.6310105]
[1747900862565,0.00509141,111070.0,111060.0,1.65802161]
[1747900862781,0.01409401,111070.0,111060.0,1.72186161]
[1747900862984,0.00309141,111070.0,111060.0,1.72186161]
[1747900863200,9.141e-05,111070.0,111060.0,1.72186161]
[1747900863337,0.00109141,111070.0,111060.0,1.72186161]
[1747900863542,0.00209141,111070.0,111060.0,1.72186161]
[1747900865229,0.01100098,111090.0,111080.0,0.20705698]
[1747900865450,0.0200022,111090.0,111080.0,3.5646515]
[1747900865703,0.002,111090.0,111080.0,3.00285635]
[1747900865901,0.002,111090.0,111080.0,2.93561635]
[1747900866632,0.004,111090.0,111080.0,2.93561635]
[1747900866870,0.004,111090.0,111080.0,2.96262135]
[1747900867087,0.002,111090.0,111080.0,2.96262135]
[1747900867543,0.002,111090.0,111080.0,2.97618032]
[1747900867746,0.003,111090.0,111080.0,2.97618032]
[1747900868763,0.003,111090.0,111080.0,2.97622032]
[1747900870694,0.003,111090.0,111080.0,2.46781632]
[1747900870886,0.003,111090.0,111080.0,2.07934532]
[1747900871372,0.003,111090.0,111080.0,1.77638532]
[1747900871614,0.003,111090.0,111080.0,1.35428856]
[1747900871831,0.02012666,111090.0,111080.0,1.02156856]
[1747900872059,0.03812918,111090.0,111080.0,0.98442371]
[1747900872274,0.21816338,111090.0,111080.0,0.027045]
[1747900872483,0.02012746,111090.0,111080.0,1.2886816]
[1747900872701,0.01112552,111090.0,111080.0,1.2886816]
[1747900872917,0.02012682,111090.0,111080.0,1.6286816]
[1747900873124,0.02012682,111090.0,111080.0,1.19373974]
[1747900873299,0.21816419,111090.0,111080.0,1.6562859]
[1747900873535,0.03812982,111090.0,111080.0,1.66528785]
[1747900874385,0.01112552,111090.0,111080.0,1.99041861]
[1747900874587,0.02912828,111090.0,111080.0,1.72908785]
[1747900876164,0.21816419,111090.0,111080.0,1.67890901]
[1747900876284,0.21816419,111090.0,111080.0,1.66990706]
[1747900876512,0.28376419,111090.0,111080.0,0.34]
[1747900876736,0.19805511,111080.0,111070.0,0.84812363]
[1747900877093,0.19805511,111080.0,111070.0,0.99005076]
[1747900877270,0.22135284,111080.0,111070.0,1.37852]
[1747900877683,0.25465284,111080.0,111070.0,0.26133076]
[1747900877923,0.25466978,111070.0,111060.0,4e-05]
[1747900879333,0.25466978,111070.0,111060.0,0.60137076]
[1747900879551,0.25466978,111070.0,111060.0,0.26137076]
[1747900879772,0.25466978,111070.0,111060.0,0.60137076]
[1747900879999,0.25466978,111070.0,111060.0,0.34204]
[1747900880401,0.25466978,111070.0,111060.0,0.34404]
[1747900880623,0.25466978,111070.0,111060.0,0.34204]
[1747900880860,0.25466978,111070.0,111060.0,0.60337076]
[1747900881081,0.25466978,111070.0,111060.0,0.60137076]
[1747900881319,0.25466978,111070.0,111060.0,0.60237076]
[1747900882193,0.25466978,111070.0,111060.0,0.60337076]
[1747900882778,0.25466978,111070.0,111060.0,0.34204]
[1747900883180,0.25466978,111070.0,111060.0,0.00204]
[1747900883804,0.25466978,111070.0,111060.0,4e-05]
[1747900884030,0.52462978,111070.0,111060.0,4e-05]
[1747900884478,0.52562978,111070.0,111060.0,4e-05]
[1747900885226,0.52662978,111070.0,111060.0,4e-05]
[1747900886032,0.52462978,111070.0,111060.0,4e-05]
[1747900886234,0.18912087,111040.0,111030.0,0.53129076]
[1747900886448,0.18912087,111040.0,111030.0,0.26183862]
[1747900886664,0.21912087,111040.0,111030.0,0.53183862]
[1747900887490,0.21912087,111040.0,111030.0,0.53283862]
[1747900887883,0.25042087,111040.0,111030.0,0.27150786]
[1747900888090,0.19812639,111040.0,111030.0,1.06197668]
[1747900888384,0.19812639,111040.0,111030.0,1.07098317]
[1747900888621,0.19812639,111040.0,111030.0,1.06197668]
[1747900888622,0.18912087,111040.0,111030.0,1.06197668]
[1747900888830,0.18009905,111050.0,111030.0,1.08999517]
[1747900889035,0.19812605,111040.0,111030.0,0.81965849]
[1747900889241,0.19812605,111040.0,111030.0,1.07198309]
[1747900889455,0.19812605,111040.0,111030.0,1.08098934]
[1747900889626,0.1891207,111040.0,111030.0,1.07198309]
[1747900889861,0.1891207,111040.0,111030.0,1.07998942]
[1747900890238,0.1891207,111040.0,111030.0,1.08098942]
[1747900890441,0.1891207,111040.0,111030.0,0.81965866]
[1747900890621,0.18011527,111040.0,111030.0,1.07998942]
[1747900891037,0.18011527,111040.0,111030.0,1.08098942]
[1747900891199,0.18011527,111040.0,111030.0,0.87383862]
[1747900891395,0.18011527,111040.0,111030.0,0.60333076]
[1747900891625,0.24221527,111040.0,111030.0,0.60333076]
[1747900892247,0.24221527,111040.0,111030.0,0.002]
[1747900892831,0.24221527,111040.0,111030.0,0.26333076]
[1747900893289,0.24221527,111040.0,111030.0,0.002]
[1747900894962,0.24221527,111040.0,111030.0,0.26333076]
[1747900896984,0.24221527,111040.0,111030.0,0.002]
[1747900897199,0.24221527,111040.0,111030.0,0.26333076]
[1747900898294,0.18011527,111040.0,111030.0,0.26333076]
[1747900898709,0.19814414,111030.0,111020.0,0.53410346]
[1747900898903,0.18913806,111030.0,111020.0,0.61528871]
[1747900899140,0.15035337,111030.0,111020.0,0.62429609]
[1747900899309,0.15935994,111030.0,111020.0,0.61528871]
[1747900899895,0.15935994,111030.0,111020.0,0.62429609]
[1747900900149,0.15935994,111030.0,111020.0,0.61728871]
[1747900900354,0.15935994,111030.0,111020.0,0.61928871]
[1747900902040,0.19115994,111030.0,111020.0,0.61928871]
[1747900902240,0.22195994,111030.0,111020.0,0.27928871]
[1747900902682,0.22195994,111030.0,111020.0,0.01795795]
[1747900903124,0.22195994,111030.0,111020.0,0.01595795]
[1747900903349,0.22195994,111030.0,111020.0,0.01395795]
[1747900905463,0.22595994,111030.0,111020.0,0.01395795]
[1747900905661,0.22995994,111030.0,111020.0,0.01395795]
[1747900906844,0.24995994,111030.0,111020.0,0.01395795]
[1747900907048,0.25465569,111030.0,111020.0,0.01395795]
[1747900907753,0.263247,111030.0,111020.0,0.01395795]
[1747900908892,0.27677253,111030.0,111020.0,0.01395795]
[1747900910939,0.28746537,111030.0,111020.0,0.01395795]
[1747900914911,0.28346537,111030.0,111020.0,0.01395795]
[1747900915121,0.54079613,111030.0,111020.0,0.01395795]
[1747900915328,0.54479613,111030.0,111020.0,0.01395795]
[1747900915535,0.54879613,111030.0,111020.0,0.01395795]
[1747900916206,0.19817976,111010.0,111000.0,0.00204]
[1747900916424,0.22887976,111010.0,111000.0,0.00204]
[1747900916854,0.19817976,111010.0,111000.0,0.00204]
[1747900917061,0.19817976,111010.0,111000.0,0.66707076]
[1747900917285,0.19817976,111010.0,111000.0,0.40574]
[1747900918758,0.19917976,111010.0,111000.0,0.40574]
[1747900918978,0.19912476,111010.0,111000.0,0.40574]
[1747900919184,0.20012476,111010.0,111000.0,0.40574]
[1747900919331,0.19912476,111010.0,111000.0,0.40574]
[1747900919533,0.19812476,111010.0,111000.0,0.40774]
[1747900919739,0.19812476,111010.0,111000.0,0.40874]
[1747900919985,0.19812476,111010.0,111000.0,0.06874]
[1747900920943,0.18016239,111020.0,111000.0,0.40874]
[1747900921160,0.18016239,111020.0,111010.0,0.4009]
[1747900921161,0.19817626,111020.0,111010.0,0.4009]
[1747900921368,0.19817667,111020.0,111010.0,0.4009]
[1747900921580,0.18917197,111010.0,111000.0,0.03504]
[1747900921780,0.18917197,111010.0,111000.0,0.00304]
[1747900922209,0.18917197,111010.0,111000.0,0.00404]
[1747900922453,0.22237197,111010.0,111000.0,0.00404]
[1747900922656,0.25507197,111010.0,111000.0,0.00204]
[1747900922855,0.25507197,111010.0,111000.0,0.00404]
[1747900923061,0.22237197,111010.0,111000.0,0.00504]
[1747900923464,0.22237197,111010.0,111000.0,0.00204]
[1747900925211,0.25357197,111010.0,111000.0,0.00204]
[1747900925905,0.57202797,111010.0,111000.0,0.00204]
[1747900927980,0.58061928,111010.0,111000.0,0.00204]
[1747900928536,1.18236243,111010.0,111000.0,0.00204]
[1747900928779,1.20705672,111010.0,111000.0,0.00204]
[1747900929619,1.19705672,111010.0,111000.0,0.00204]
[1747900929826,1.85663385,111010.0,111000.0,0.00204]
[1747900930063,1.86263385,111010.0,111000.0,0.00204]
[1747900930270,1.85963385,111010.0,111000.0,0.00204]
[1747900930720,1.87363385,111010.0,111000.0,0.00204]
[1747900931385,1.87063385,111010.0,111000.0,0.00204]
[1747900931801,1.8708371,111010.0,111000.0,0.00204]
[1747900932223,1.8708371,111010.0,110990.0,4e-05]
[1747900932224,0.54372987,111000.0,110990.0,4e-05]
[1747900932444,1.13022267,111000.0,110990.0,4e-05]
[1747900932874,1.13881398,111000.0,110990.0,4e-05]
[1747900933113,0.88686758,111000.0,110990.0,4e-05]
[1747900933353,1.54226758,111000.0,110990.0,4e-05]
[1747900933568,1.54226758,111000.0,110990.0,0.00013141]
[1747900933783,1.54726758,111000.0,110990.0,0.00013141]
[1747900934814,1.55226758,111000.0,110990.0,0.00013141]
[1747900935517,1.56661979,111000.0,110990.0,0.00013141]
[1747900935929,1.30467339,111000.0,110990.0,0.00013141]
[1747900936133,1.56661979,111000.0,110990.0,0.00013141]
[1747900937090,1.55219894,111000.0,110990.0,0.00013141]
[1747900937995,0.90667894,111000.0,110990.0,0.00013141]
[1747900938205,1.55219894,111000.0,110990.0,0.00013141]
[1747900939098,1.54859991,111000.0,110990.0,0.00013141]
[1747900939567,0.25150606,110990.0,110980.0,0.012]
[1747900939745,0.25150606,110990.0,110980.0,0.01215249]
[1747900940366,0.89702606,110990.0,110980.0,0.01215249]
[1747900940568,0.90561737,110990.0,110980.0,0.01215249]
[1747900940796,1.16756377,110990.0,110980.0,0.01215249]
[1747900940956,1.17056377,110990.0,110980.0,0.01215249]
[1747900941827,1.52356377,110990.0,110980.0,0.01215249]
[1747900942054,1.54810462,110990.0,110980.0,0.01215249]
[1747900942280,1.53810462,110990.0,110980.0,0.01215249]
[1747900942743,1.55245683,110990.0,110980.0,0.01215249]
[1747900944358,1.57668077,110990.0,110980.0,0.01215249]
[1747900944590,1.56668077,110990.0,110980.0,0.01215249]
[1747900945054,1.29644077,110990.0,110980.0,0.01215249]
[1747900945308,1.57672077,110990.0,110980.0,0.01215249]
[1747900945536,1.56672077,110990.0,110980.0,0.01215249]
[1747900945985,1.55597445,110990.0,110980.0,0.01215249]
[1747900948783,1.55757514,110990.0,110980.0,0.01215249]
[1747900949003,1.56226562,110990.0,110980.0,0.01215249]
[1747900951453,1.62432688,110990.0,110980.0,0.01215249]
[1747900952819,1.60997467,110990.0,110980.0,0.01215249]
[1747900953748,0.5419976,110970.0,110960.0,0.00204]
[1747900953975,0.5419976,110970.0,110960.0,0.00213166]
[1747900955549,0.57981222,110970.0,110960.0,0.00213166]
[1747900955769,0.61370154,110970.0,110960.0,0.00213166]
[1747900956867,0.61828727,110970.0,110960.0,0.00213166]
[1747900957943,0.60828727,110970.0,110960.0,0.00213166]
[1747900959114,1.24924727,110970.0,110960.0,0.00213166]
[1747900960065,1.21343265,110970.0,110960.0,0.00213166]
[1747900960703,0.55812976,110970.0,110960.0,0.00213166]
[1747900960870,1.19912976,110970.0,110960.0,0.00213166]
[1747900961596,0.93718336,110970.0,110960.0,0.00213166]
[1747900961809,1.19912976,110970.0,110960.0,0.00213166]
[1747900962635,0.93718336,110970.0,110960.0,0.00213166]
[1747900962841,0.19828693,110950.0,110940.0,0.00204]
[1747900963079,0.46023333,110950.0,110940.0,0.00217766]
[1747900963670,0.47960227,110950.0,110940.0,0.00217766]
[1747900964491,0.47960227,110950.0,110940.0,0.00317766]
[1747900965153,0.21765587,110950.0,110940.0,0.00417766]
[1747900965371,0.48801587,110950.0,110940.0,0.00417766]
[1747900965809,0.48801587,110950.0,110940.0,0.00217766]
[1747900966222,0.48901587,110950.0,110940.0,0.00217766]
[1747900969311,0.49530449,110950.0,110940.0,0.00217766]
[1747900971355,1.12793089,110950.0,110940.0,0.00217766]
[1747900971552,0.86598449,110950.0,110940.0,0.00217766]
[1747900971756,1.12793089,110950.0,110940.0,0.00217766]
[1747900973241,0.86598449,110950.0,110940.0,0.00217766]
[1747900973376,1.14230106,110950.0,110940.0,0.00217766]
[1747900974174,0.88035466,110950.0,110940.0,0.00217766]
[1747900975282,0.86957703,110950.0,110940.0,0.00217766]
[1747900981746,1.0631153,110950.0,110940.0,0.00217766]
[1747900983021,0.86957703,110950.0,110940.0,0.00217766]
[1747900983231,1.0631153,110950.0,110940.0,0.00217766]
[1747900992404,0.86957703,110950.0,110940.0,0.00217766]
[1747900993653,0.86957703,110950.0,110940.0,0.06417766]
[1747900993654,0.22853703,110950.0,110940.0,0.06417766]
[1747900994024,0.2238491,110950.0,110940.0,0.06417766]
[1747900994556,0.286078,110950.0,110940.0,0.06417766]
[1747900994966,0.28251655,110950.0,110940.0,0.06417766]
[1747900996600,0.27170783,110950.0,110940.0,0.06417766]
[1747900998286,0.20947893,110950.0,110940.0,0.06417766]
[1747901009016,0.18929133,110940.0,110930.0,0.20790175]
[1747901009231,0.19832203,110930.0,110920.0,0.26413508]
[1747901009426,0.21635109,110930.0,110920.0,0.66680308]
[1747901010092,0.20733639,110930.0,110920.0,0.66680308]
[1747901010296,0.19832276,110930.0,110920.0,0.03350957]
[1747901010520,0.1893084,110930.0,110920.0,0.29560465]
[1747901010727,0.1893084,110930.0,110920.0,0.03750957]
[1747901011339,0.1893084,110930.0,110920.0,0.04150957]
[1747901012221,0.1893084,110930.0,110920.0,0.10730957]
[1747901016449,0.1893084,110930.0,110920.0,0.10330957]
[1747901016655,0.1893084,110930.0,110920.0,0.09930957]
[1747901016874,0.1893084,110930.0,110920.0,0.10230957]
[1747901017628,0.1893084,110930.0,110920.0,0.10530957]
[1747901019938,0.19090909,110930.0,110920.0,0.44530957]
[1747901020369,0.19090909,110930.0,110920.0,0.03950957]
[1747901020585,0.22160909,110930.0,110920.0,0.03950957]
[1747901021865,0.2302004,110930.0,110920.0,0.03950957]
[1747901023136,0.2302004,110930.0,110920.0,0.37950957]
[1747901023330,0.2302004,110930.0,110920.0,0.34804]
[1747901024905,0.1995004,110930.0,110920.0,0.34804]
[1747901026754,0.1995004,110930.0,110920.0,0.13072366]
[1747901027003,0.20851435,110930.0,110920.0,0.06445377]
[1747901027217,0.21752888,110930.0,110920.0,0.25797913]
[1747901027430,0.20851476,110930.0,110920.0,0.25572536]
[1747901027699,0.1995004,110930.0,110920.0,0.25572536]
[1747901027921,0.1995004,110930.0,110920.0,0.0622]
[1747901028549,0.19090909,110930.0,110920.0,0.0622]
[1747901028684,0.19090909,110930.0,110920.0,0.4022]
[1747901029612,0.18189456,110930.0,110920.0,0.4022]
[1747901033151,0.18189456,110930.0,110920.0,0.25572536]
[1747901033517,0.19090909,110930.0,110920.0,0.25572536]
[1747901033744,0.19090884,110930.0,110920.0,0.25572536]
[1747901033952,0.21795194,110930.0,110920.0,0.25572536]
[1747901034592,0.21795194,110930.0,110920.0,0.0622]
[1747901034798,0.21795194,110930.0,110920.0,0.25572536]
[1747901037865,0.2089379,110930.0,110920.0,0.25572536]
[1747901040720,0.1999228,110930.0,110920.0,0.25572536]
[1747901040927,0.21795177,110930.0,110920.0,0.25572536]
[1747901041127,0.20893716,110930.0,110920.0,2.41895036]
[1747901041338,0.21795169,110930.0,110920.0,2.41895036]
[1747901042120,0.21795169,110930.0,110920.0,2.51895036]
[1747901042327,0.21795169,110930.0,110920.0,2.26878136]
[1747901042649,0.22696638,110930.0,110920.0,2.26878136]
[1747901043647,0.22696638,110930.0,110920.0,2.25545436]
[1747901043955,0.21795234,110930.0,110920.0,2.25545436]
[1747901044196,0.21795234,110930.0,110920.0,2.24193336]
[1747901044685,0.19992378,110930.0,110920.0,0.1622]
[1747901044916,0.19992378,110930.0,110920.0,0.0313]
[1747901045146,0.19992378,110930.0,110920.0,0.22482536]
[1747901045385,0.19992378,110930.0,110920.0,0.0313]
[1747901045988,0.19834056,110920.0,110910.0,1.27731516]
[1747901046219,0.19834056,110920.0,110910.0,1.26843645]
[1747901046220,0.20735582,110920.0,110910.0,1.26843645]
[1747901046425,0.21637059,110920.0,110910.0,1.26843645]
[1747901046799,0.21637059,110920.0,110910.0,1.19062076]
[1747901046999,0.21637059,110920.0,110910.0,1.46094076]
[1747901047248,0.20735517,110920.0,110910.0,1.72374515]
[1747901047457,0.21637051,110920.0,110910.0,1.72374515]
[1747901048084,0.21637051,110920.0,110910.0,1.59539176]
[1747901048559,0.22538601,110920.0,110910.0,1.36443645]
[1747901048762,0.21637051,110920.0,110910.0,1.36443645]
[1747901048991,0.21637051,110920.0,110910.0,1.37349276]
[1747901049450,0.22538593,110920.0,110910.0,1.36447645]
[1747901049905,0.22538593,110920.0,110910.0,1.33358296]
[1747901050749,0.22538593,110920.0,110910.0,1.34259927]
[1747901051610,0.22538593,110920.0,110910.0,1.33358296]
[1747901052402,0.21637059,110920.0,110910.0,1.33358296]
[1747901053271,0.22538609,110920.0,110910.0,1.33358296]
[1747901054643,0.21637059,110920.0,110910.0,1.33358296]
[1747901058172,0.22538609,110920.0,110910.0,1.33358296]
[1747901058596,0.18031013,110920.0,110910.0,1.51390935]
[1747901058817,0.216371,110920.0,110910.0,1.33358296]
[1747901059971,0.21637092,110920.0,110910.0,1.33358296]
[1747901060380,0.21637092,110920.0,110910.0,0.69370296]
[1747901060637,0.21637092,110920.0,110910.0,1.33230296]
[1747901061058,0.2073555,110920.0,110910.0,1.33230296]
[1747901061479,0.2073555,110920.0,110910.0,1.34131927]
[1747901061692,0.19834024,110920.0,110910.0,1.33230296]
[1747901061900,0.20735558,110920.0,110910.0,1.1387776]
[1747901062108,0.20735558,110920.0,110910.0,1.33230296]
[1747901063577,0.19834024,110920.0,110910.0,1.33230296]
[1747901063829,0.2073555,110920.0,110910.0,1.34131927]
[1747901065311,0.2073555,110920.0,110910.0,1.33230296]
[1747901066025,0.2073555,110920.0,110910.0,1.34131927]
[1747901066543,0.2073555,110920.0,110910.0,1.33230296]
[1747901067062,0.216371,110920.0,110910.0,1.1387776]
[1747901067258,0.2073555,110920.0,110910.0,1.26830296]
[1747901067518,0.2073555,110920.0,110910.0,1.29354485]
[1747901069014,0.2073555,110920.0,110910.0,1.10001949]
[1747901069261,0.2073555,110920.0,110910.0,1.29354485]
[1747901072730,0.19834016,110920.0,110910.0,1.29354485]
[1747901072928,0.2073555,110920.0,110910.0,1.29354485]
[1747901073393,0.19834024,110920.0,110910.0,1.35474485]
[1747901073969,0.20735558,110920.0,110910.0,1.29354485]
[1747901074117,0.216371,110920.0,110910.0,1.26830296]
[1747901074332,0.2073555,110920.0,110910.0,1.26830296]
[1747901075762,0.21637092,110920.0,110910.0,1.26830296]
[1747901075965,0.2073555,110920.0,110910.0,1.26830296]
[1747901076196,0.21637092,110920.0,110910.0,1.26830296]
[1747901076548,0.21637084,110920.0,110910.0,1.26830296]
[1747901076807,0.18031013,110920.0,110910.0,1.44862935]
[1747901076980,0.20735534,110920.0,110910.0,1.26830296]
[1747901078367,0.19834008,110920.0,110910.0,1.26830296]
[1747901078575,0.2163706,110920.0,110910.0,1.26830296]
[1747901080010,0.19834008,110920.0,110910.0,1.26830296]
[1747901080208,0.20735534,110920.0,110910.0,1.26830296]
[1747901082048,0.20735534,110920.0,110910.0,1.0747776]
[1747901082274,0.20735534,110920.0,110910.0,1.26830296]
[1747901082875,0.18031013,110920.0,110910.0,1.5248702]
[1747901083133,0.19833991,110920.0,110910.0,1.54290266]
[1747901083337,0.19833991,110920.0,110910.0,1.54290274]
[1747901083570,0.20735501,110920.0,110910.0,1.54290274]
[1747901083787,0.20735501,110920.0,110910.0,1.55191889]
[1747901084184,0.20735501,110920.0,110910.0,1.54290274]
[1747901084364,0.19833991,110920.0,110910.0,2.61912774]
[1747901084524,0.19833991,110920.0,110910.0,2.62814389]
[1747901084718,0.19833991,110920.0,110910.0,2.59168686]
[1747901085134,0.19833991,110920.0,110910.0,2.65218686]
[1747901086305,0.19833991,110920.0,110910.0,2.59168686]
[1747901086511,0.19833991,110920.0,110910.0,2.43936186]
[1747901086890,0.19833991,110920.0,110910.0,2.41826086]
[1747901087128,0.19833983,110920.0,110910.0,2.41826086]
[1747901087305,0.19833983,110920.0,110910.0,2.27178622]
[1747901087602,0.20735493,110920.0,110910.0,2.24654325]
[1747901088038,0.20735493,110920.0,110910.0,1.97786817]
[1747901088275,0.20735493,110920.0,110910.0,1.97368543]
[1747901088449,0.20735493,110920.0,110910.0,2.17622694]
[1747901088699,0.20735493,110920.0,110910.0,1.76454006]
[1747901088871,0.20735484,110920.0,110910.0,1.79684006]
[1747901089495,0.19833983,110920.0,110910.0,2.10454006]
[1747901090255,0.20735484,110920.0,110910.0,2.29806542]
[1747901090493,0.20735484,110920.0,110910.0,2.10454006]
[1747901091101,0.20735484,110920.0,110910.0,2.09552391]
[1747901091304,0.20735484,110920.0,110910.0,2.10454006]
[1747901091679,0.21637002,110920.0,110910.0,2.09552399]
[1747901091880,0.20735484,110920.0,110910.0,2.09552399]
[1747901092101,0.20735484,110920.0,110910.0,2.10454014]
[1747901092289,0.20735484,110920.0,110910.0,2.2980655]
[1747901092932,0.20735484,110920.0,110910.0,2.10454014]
[1747901093140,0.20735484,110920.0,110910.0,1.92589353]
[1747901094656,0.18031013,110920.0,110910.0,1.92589353]
[1747901094880,0.00160069,110930.0,110920.0,0.62489651]
[1747901095096,0.00160069,110930.0,110920.0,3.53444687]
[1747901095306,0.00160069,110930.0,110920.0,3.02211987]
[1747901096781,0.00160069,110930.0,110920.0,3.02511987]
[1747901097225,0.00160069,110930.0,110920.0,3.02811987]
[1747901097842,0.00160069,110930.0,110920.0,3.02511987]
[1747901098049,0.00160069,110930.0,110920.0,3.02811987]
[1747901100067,0.00160069,110930.0,110920.0,3.66635987]
[1747901100286,0.01061473,110930.0,110920.0,2.22194887]
[1747901100499,0.00160069,110930.0,110920.0,2.22194887]
[1747901100719,0.00160069,110930.0,110920.0,2.25334887]
[1747901101443,0.00160069,110930.0,110920.0,2.30334887]
[1747901101660,0.00160069,110930.0,110920.0,2.27194887]
[1747901102489,0.00160069,110930.0,110920.0,2.30234887]
[1747901104468,0.01061465,110930.0,110920.0,2.30234887]
[1747901104694,0.00160069,110930.0,110920.0,2.30234887]
[1747901105113,0.01061473,110930.0,110920.0,2.00162887]
[1747901105324,0.00160069,110930.0,110920.0,2.23910887]
[1747901106172,0.00160069,110930.0,110920.0,1.85723423]
[1747901106388,0.002,110950.0,110940.0,1.01170985]
[1747901106594,0.002,110950.0,110940.0,4.11827585]
[1747901106802,0.002,110950.0,110940.0,3.98633685]
[1747901107010,0.002,110950.0,110940.0,3.80276385]
[1747901107212,0.002,110950.0,110940.0,3.73757285]
[1747901107423,0.002,110950.0,110940.0,4.12677285]
[1747901107629,0.003,110950.0,110940.0,4.12677285]
[1747901107991,0.003,110950.0,110940.0,3.92045457]
[1747901108202,0.002,110950.0,110940.0,4.12777285]
[1747901108409,0.002,110970.0,110960.0,0.60858091]
[1747901108609,0.02002158,110970.0,110960.0,3.06555227]
[1747901108803,0.01101071,110970.0,110960.0,3.07875556]
[1747901109242,0.002,110970.0,110960.0,3.07875556]
[1747901109395,0.002,110970.0,110960.0,3.14756026]
[1747901109608,0.00213729,110970.0,110960.0,3.14756026]
[1747901109848,0.00213729,110970.0,110960.0,3.35562647]
[1747901110046,0.08509064,110990.0,110980.0,0.56178441]
[1747901110319,0.04278139,110990.0,110980.0,2.80712477]
[1747901110524,0.06079997,110990.0,110980.0,2.63603077]
[1747901111328,0.0337723,110990.0,110980.0,2.63603077]
[1747901111452,0.04678155,110990.0,110980.0,2.63603077]
[1747901111655,0.05078155,110990.0,110980.0,2.70422524]
[1747901111866,0.05979096,110990.0,110980.0,2.70422524]
[1747901112073,0.06880053,110990.0,110980.0,2.70422524]
[1747901112338,0.05979096,110990.0,110980.0,2.70422524]
[1747901112493,0.05078147,110990.0,110980.0,2.70422524]
[1747901112693,0.05979088,110990.0,110980.0,2.70422524]
[1747901112898,0.0597908,110990.0,110980.0,2.70422524]
[1747901113105,0.05078147,110990.0,110980.0,2.70422524]
[1747901113320,0.03306799,110990.0,110980.0,2.70422524]
[1747901113533,0.0240585,110990.0,110980.0,2.70422524]
[1747901113750,0.0220585,110990.0,110980.0,2.70422524]
[1747901113969,0.0240585,110990.0,110980.0,2.70422524]
[1747901114169,0.07417756,110990.0,110980.0,1.7528054]
[1747901114382,0.10567756,110990.0,110980.0,1.76181546]
[1747901115238,0.2948837,110990.0,110980.0,1.4825254]